[Event "Chess Festival Groningen 2023 | A"]
[Site "Groningen, Netherlands"]
[Date "2023.12.27"]
[Round "6.10"]
[White "Nevednichy, Vladislav"]
[Black "Nagarkatte, Vedant"]
[Result "1-0"]
[TimeControl "90min/40moves + 30min + 30sec/move"]
[BlackFideId "25636227"]
[WhiteElo "2452"]
[BlackElo "2320"]

1. e4 {[%clk 01:30:55]} {[%emt 00:00:04]} e5 {[%clk 01:30:57]} {[%emt
00:00:03]} 2. Nf3 {[%clk 01:31:19]} {[%emt 00:00:07]} Nc6 {[%clk 01:31:23]}
{[%emt 00:00:04]} 3. Bc4 {[%clk 01:31:36]} {[%emt 00:00:13]} Nf6 {[%clk
01:31:49]} {[%emt 00:00:04]} 4. d3 {[%clk 01:32:02]} {[%emt 00:00:04]} d5
{[%clk 01:32:15]} {[%emt 00:00:03]} 5. exd5 {[%clk 01:32:25]} {[%emt 00:00:07]}
Nxd5 {[%clk 01:32:41]} {[%emt 00:00:04]} 6. O-O {[%clk 01:32:24]} {[%emt
00:00:31]} Be7 {[%clk 01:33:07]} {[%emt 00:00:04]} 7. Re1 {[%clk 01:30:18]}
{[%emt 00:02:36]} f6 {[%clk 01:33:33]} {[%emt 00:00:04]} 8. a4 {[%clk
01:19:31]} {[%emt 00:11:17]} Bg4 {[%clk 01:32:17]} {[%emt 00:01:46]} 9. a5
{[%clk 01:16:47]} {[%emt 00:03:14]} a6 {[%clk 01:29:37]} {[%emt 00:03:10]} 10.
c3 {[%clk 01:16:21]} {[%emt 00:00:56]} Qd7 {[%clk 01:28:07]} {[%emt 00:02:00]}
11. h3 {[%clk 01:08:44]} {[%emt 00:08:07]} Bh5 {[%clk 01:28:12]} {[%emt
00:00:25]} 12. Nxe5 {[%clk 01:07:58]} {[%emt 00:01:16]} Qf5 {[%clk 01:12:13]}
{[%emt 00:16:29]} 13. Ng4 {[%clk 00:57:37]} {[%emt 00:10:50]} O-O-O {[%clk
01:09:37]} {[%emt 00:03:07]} 14. d4 {[%clk 00:56:15]} {[%emt 00:01:53]} Rhe8
{[%clk 00:51:52]} {[%emt 00:18:15]} 15. Nd2 {[%clk 00:39:47]} {[%emt 00:16:57]}
Qd7 {[%clk 00:17:29]} {[%emt 00:34:56]} 16. Qb3 {[%clk 00:35:56]} {[%emt
00:10:43]} Bxg4 {[%clk 00:09:47]} {[%emt 00:01:47]} 17. hxg4 {[%clk 00:35:56]}
{[%emt 00:00:30]} Nf4 {[%clk 00:08:51]} {[%emt 00:01:26]} 18. Nf1 {[%clk
00:35:46]} {[%emt 00:00:39]} Qxg4 {[%clk 00:07:59]} {[%emt 00:01:23]} 19. Bxf4
{[%clk 00:36:13]} {[%emt 00:00:03]} Qxf4 {[%clk 00:08:25]} {[%emt 00:00:04]} 20.
Bf7 {[%clk 00:36:33]} {[%emt 00:00:10]} Rf8 {[%clk 00:02:57]} {[%emt 00:05:59]}
21. Be6+ {[%clk 00:36:57]} {[%emt 00:00:05]} Kb8 {[%clk 00:03:18]} {[%emt
00:00:10]} 22. Bd5 {[%clk 00:37:20]} {[%emt 00:00:09]} Rxd5 {[%clk 00:03:19]}
{[%emt 00:00:34]} 23. Qxd5 {[%clk 00:37:46]} Bd6 {[%clk 00:03:09]} {[%emt
00:00:36]} 24. b4 {[%clk 00:36:56]} {[%emt 00:01:20]} Ne7 {[%clk 00:03:34]}
{[%emt 00:00:05]} 25. Qe4 {[%clk 00:36:26]} {[%emt 00:01:00]} Qg5 {[%clk
00:02:07]} {[%emt 00:01:58]} 26. c4 {[%clk 00:35:57]} {[%emt 00:00:58]} f5
{[%clk 00:02:16]} {[%emt 00:00:21]} 27. Qf3 {[%clk 00:35:25]} {[%emt 00:01:02]}
Bxb4 {[%clk 00:01:26]} {[%emt 00:01:21]} 28. Rab1 {[%clk 00:33:17]} {[%emt
00:02:37]} Nc6 {[%clk 00:01:49]} {[%emt 00:00:07]} 29. Rxb4 {[%clk 00:32:46]}
{[%emt 00:01:01]} Nxb4 {[%clk 00:02:17]} {[%emt 00:00:03]} 30. Rb1 {[%clk
00:33:10]} {[%emt 00:00:05]} Qe7 {[%clk 00:02:34]} {[%emt 00:00:13]} 31. c5
{[%clk 00:33:34]} {[%emt 00:00:06]} 1-0

[Event "Chess Festival Groningen 2023 | A"]
[Site "Groningen, Netherlands"]
[Date "2023.12.27"]
[Round "6.11"]
[White "Keuning, Selwin"]
[Black "Bulmaga, Irina"]
[Result "1/2-1/2"]
[TimeControl "90min/40moves + 30min + 30sec/move"]
[WhiteElo "2139"]
[BlackElo "2439"]

1. e4 {[%clk 01:30:57]} {[%emt 00:00:03]} c5 {[%clk 01:30:52]} {[%emt
00:00:08]} 2. c3 {[%clk 01:31:22]} {[%emt 00:00:05]} d5 {[%clk 01:31:12]}
{[%emt 00:00:10]} 3. exd5 {[%clk 01:31:47]} {[%emt 00:00:05]} Qxd5 {[%clk
01:31:35]} {[%emt 00:00:07]} 4. d4 {[%clk 01:32:13]} {[%emt 00:00:05]} Nf6
{[%clk 01:31:45]} {[%emt 00:00:19]} 5. Nf3 {[%clk 01:32:33]} {[%emt 00:00:11]}
e6 {[%clk 01:32:02]} {[%emt 00:00:11]} 6. Na3 {[%clk 01:32:32]} {[%emt
00:00:33]} a6 {[%clk 01:31:18]} {[%emt 00:01:14]} 7. Nc4 {[%clk 01:32:14]}
{[%emt 00:00:49]} Nbd7 {[%clk 01:30:28]} {[%emt 00:01:18]} 8. Be2 {[%clk
01:31:24]} {[%emt 00:01:20]} b5 {[%clk 01:22:39]} {[%emt 00:08:19]} 9. Na5
{[%clk 01:30:52]} {[%emt 00:01:02]} Qd6 {[%clk 01:16:50]} {[%emt 00:06:19]} 10.
a4 {[%clk 01:29:35]} {[%emt 00:01:47]} Qc7 {[%clk 01:13:49]} {[%emt 00:03:30]}
11. dxc5 {[%clk 01:29:01]} {[%emt 00:01:05]} Bxc5 {[%clk 01:03:24]} {[%emt
00:10:55]} 12. b4 {[%clk 01:14:38]} {[%emt 00:14:54]} Bb6 {[%clk 01:02:19]}
{[%emt 00:01:35]} 13. O-O {[%clk 01:12:26]} {[%emt 00:02:40]} O-O {[%clk
00:59:16]} {[%emt 00:03:34]} 14. axb5 {[%clk 01:08:28]} {[%emt 00:04:28]} axb5
{[%clk 00:59:24]} {[%emt 00:00:22]} 15. Bxb5 {[%clk 01:07:57]} {[%emt
00:01:02]} Bb7 {[%clk 00:43:37]} {[%emt 00:16:16]} 16. c4 {[%clk 00:55:22]}
{[%emt 00:13:04]} Bxa5 {[%clk 00:37:05]} {[%emt 00:07:02]} 17. bxa5 {[%clk
00:54:03]} {[%emt 00:01:47]} Nc5 {[%clk 00:36:46]} {[%emt 00:00:50]} 18. Ra3
{[%clk 00:37:36]} {[%emt 00:17:00]} Rfd8 {[%clk 00:32:08]} {[%emt 00:05:07]} 19.
Qe2 {[%clk 00:36:05]} {[%emt 00:02:00]} Be4 {[%clk 00:27:09]} {[%emt 00:05:30]}
20. Be3 {[%clk 00:29:07]} {[%emt 00:11:29]} Ng4 {[%clk 00:26:41]} 21. g3 {[%clk
00:27:02]} Nxe3 {[%clk 00:25:04]} {[%emt 00:01:37]} 22. Qxe3 {[%clk 00:25:48]}
{[%emt 00:01:44]} Bxf3 {[%clk 00:20:47]} {[%emt 00:04:47]} 23. Qxf3 {[%clk
00:25:54]} {[%emt 00:00:24]} Rxa5 {[%clk 00:21:11]} {[%emt 00:00:06]} 24. Rfa1
{[%clk 00:19:54]} {[%emt 00:06:30]} Rxa3 {[%clk 00:21:02]} {[%emt 00:00:39]} 25.
Rxa3 {[%clk 00:18:55]} {[%emt 00:01:29]} g6 {[%clk 00:17:52]} {[%emt 00:03:39]}
26. h4 {[%clk 00:16:39]} {[%emt 00:02:46]} h5 {[%clk 00:17:41]} {[%emt
00:00:41]} 27. Ra8 {[%clk 00:11:52]} {[%emt 00:05:18]} Rxa8 {[%clk 00:16:03]}
{[%emt 00:02:08]} 28. Qxa8+ {[%clk 00:11:48]} {[%emt 00:00:33]} Kg7 {[%clk
00:16:29]} {[%emt 00:00:04]} 29. Qf3 {[%clk 00:11:18]} {[%emt 00:01:01]} Qe5
{[%clk 00:14:04]} {[%emt 00:02:55]} 30. Be8 {[%clk 00:10:22]} {[%emt 00:01:26]}
Qc7 {[%clk 00:07:07]} {[%emt 00:07:26]} 31. Bb5 {[%clk 00:08:28]} {[%emt
00:02:25]} Qd8 {[%clk 00:07:07]} {[%emt 00:00:28]} 32. Qe3 {[%clk 00:06:02]}
{[%emt 00:02:58]} Qd6 {[%clk 00:07:05]} {[%emt 00:00:32]} 33. Kg2 {[%clk
00:03:46]} {[%emt 00:02:46]} e5 {[%clk 00:06:44]} {[%emt 00:00:50]} 34. Qf3
{[%clk 00:02:37]} {[%emt 00:01:40]} Qd4 {[%clk 00:05:43]} {[%emt 00:01:31]} 35.
Qe3 {[%clk 00:02:06]} {[%emt 00:01:02]} Qd6 {[%clk 00:03:04]} {[%emt 00:03:08]}
36. Qf3 {[%clk 00:02:33]} {[%emt 00:00:03]} e4 {[%clk 00:00:51]} {[%emt
00:02:42]} 37. Qe3 {[%clk 00:02:27]} {[%emt 00:00:37]} Qe5 {[%clk 00:01:02]}
{[%emt 00:00:20]} 38. Bc6 {[%clk 00:02:36]} {[%emt 00:00:21]} f5 {[%clk
00:00:48]} {[%emt 00:00:43]} 39. Bd5 {[%clk 00:02:52]} {[%emt 00:00:14]} Qe7
{[%clk 00:00:36]} {[%emt 00:00:42]} 40. Qa3 {[%clk 00:01:47]} {[%emt 00:01:36]}
Qf8 {[%clk 00:00:36]} {[%emt 00:00:30]} 41. Qa7+ {[%clk 00:26:53]} {[%emt
00:05:24]} Kh6 {[%clk 00:25:17]} {[%emt 00:05:48]} 42. Bg8 {[%clk 00:26:33]}
{[%emt 00:00:51]} Qxg8 {[%clk 00:25:22]} {[%emt 00:00:25]} 43. Qxc5 {[%clk
00:27:00]} {[%emt 00:00:03]} Qa8 {[%clk 00:23:02]} {[%emt 00:02:49]} 44. Kh2
{[%clk 00:23:31]} {[%emt 00:04:00]} Qd8 {[%clk 00:11:03]} {[%emt 00:12:28]} 45.
Qe5 {[%clk 00:21:15]} {[%emt 00:02:45]} Kh7 {[%clk 00:07:16]} {[%emt 00:04:17]}
46. c5 {[%clk 00:16:49]} {[%emt 00:04:56]} Qd2 {[%clk 00:07:43]} {[%emt
00:00:03]} 47. Kg2 {[%clk 00:15:36]} {[%emt 00:01:44]} Qd3 {[%clk 00:06:01]}
{[%emt 00:02:13]} 48. Qd6 {[%clk 00:08:50]} {[%emt 00:07:16]} Qc3 {[%clk
00:06:14]} {[%emt 00:00:16]} 49. c6 {[%clk 00:08:25]} {[%emt 00:00:55]} Qf3+
{[%clk 00:04:04]} {[%emt 00:02:40]} 50. Kg1 {[%clk 00:08:43]} {[%emt 00:00:12]}
e3 {[%clk 00:03:55]} {[%emt 00:00:39]} 51. fxe3 {[%clk 00:08:19]} {[%emt
00:00:54]} Qe2 {[%clk 00:04:22]} {[%emt 00:00:02]} 52. Qc7+ {[%clk 00:04:20]}
{[%emt 00:04:29]} Kg8 {[%clk 00:04:08]} {[%emt 00:00:44]} 53. Qb8+ {[%clk
00:04:27]} {[%emt 00:00:24]} Kh7 {[%clk 00:04:15]} {[%emt 00:00:22]} 54. Qb7+
{[%clk 00:04:35]} {[%emt 00:00:23]} Kh6 {[%clk 00:04:08]} {[%emt 00:00:37]} 55.
c7 {[%clk 00:04:16]} {[%emt 00:00:49]} Qe1+ {[%clk 00:03:23]} {[%emt 00:01:15]}
56. Kh2 {[%clk 00:03:33]} {[%emt 00:01:13]} Qe2+ {[%clk 00:03:50]} {[%emt
00:00:03]} 57. Qg2 {[%clk 00:01:31]} {[%emt 00:02:33]} Qc4 {[%clk 00:04:17]}
{[%emt 00:00:02]} 58. Qb7 {[%clk 00:01:06]} {[%emt 00:00:55]} Qe2+ {[%clk
00:04:44]} {[%emt 00:00:03]} 59. Qg2 {[%clk 00:01:31]} {[%emt 00:00:05]} Qc4
{[%clk 00:05:09]} {[%emt 00:00:05]} 60. Qb7 {[%clk 00:01:28]} {[%emt 00:00:02]}
1/2-1/2

[Event "Chess Festival Groningen 2023 | A"]
[Site "Groningen, Netherlands"]
[Date "2023.12.27"]
[Round "6.12"]
[White "De Jong, Migchiel"]
[Black "Jin, Yueheng"]
[Result "0-1"]
[TimeControl "90min/40moves + 30min + 30sec/move"]
[WhiteElo "2301"]
[BlackElo "2398"]

1. e4 {[%clk 01:30:55]} {[%emt 00:00:02]} c5 {[%clk 01:30:58]} {[%emt
00:00:05]} 2. Nf3 {[%clk 01:31:15]} {[%emt 00:00:09]} e6 {[%clk 01:31:25]}
{[%emt 00:00:04]} 3. g3 {[%clk 01:30:15]} {[%emt 00:01:29]} d5 {[%clk
01:31:51]} {[%emt 00:00:04]} 4. exd5 {[%clk 01:30:34]} {[%emt 00:00:09]} exd5
{[%clk 01:32:17]} {[%emt 00:00:05]} 5. d4 {[%clk 01:30:54]} {[%emt 00:00:10]}
cxd4 {[%clk 01:32:39]} {[%emt 00:00:10]} 6. Nxd4 {[%clk 01:31:16]} {[%emt
00:00:07]} Nc6 {[%clk 01:33:01]} {[%emt 00:00:08]} 7. Bg2 {[%clk 01:30:58]}
{[%emt 00:00:49]} Bc5 {[%clk 01:33:25]} {[%emt 00:00:06]} 8. c3 {[%clk
01:29:05]} {[%emt 00:02:23]} Nxd4 {[%clk 01:31:03]} {[%emt 00:02:52]} 9. cxd4
{[%clk 01:29:25]} {[%emt 00:00:10]} Bb4+ {[%clk 01:25:35]} {[%emt 00:05:59]} 10.
Nc3 {[%clk 01:29:08]} {[%emt 00:00:46]} Ne7 {[%clk 01:16:31]} {[%emt 00:09:34]}
11. O-O {[%clk 01:27:38]} {[%emt 00:01:59]} Be6 {[%clk 01:03:50]} {[%emt
00:13:13]} 12. Ne2 {[%clk 01:25:20]} {[%emt 00:02:47]} Bd6 {[%clk 00:58:34]}
{[%emt 00:05:46]} 13. Nf4 {[%clk 01:16:09]} {[%emt 00:09:40]} Bxf4 {[%clk
00:58:57]} {[%emt 00:00:07]} 14. Bxf4 {[%clk 01:16:33]} {[%emt 00:00:05]} Nc6
{[%clk 00:58:42]} {[%emt 00:00:47]} 15. Rc1 {[%clk 01:10:29]} {[%emt 00:06:33]}
O-O {[%clk 00:58:51]} {[%emt 00:00:20]} 16. Rc5 {[%clk 01:09:29]} {[%emt
00:01:30]} Qd7 {[%clk 00:58:28]} {[%emt 00:00:54]} 17. Qd2 {[%clk 01:09:03]}
{[%emt 00:00:56]} Rfc8 {[%clk 00:39:07]} {[%emt 00:19:51]} 18. Rfc1 {[%clk
01:07:14]} {[%emt 00:02:16]} Qd8 {[%clk 00:32:21]} {[%emt 00:07:18]} 19. b4
{[%clk 01:03:35]} {[%emt 00:04:08]} a6 {[%clk 00:27:48]} {[%emt 00:05:04]} 20.
h4 {[%clk 01:01:19]} {[%emt 00:02:45]} h6 {[%clk 00:27:29]} {[%emt 00:00:50]}
21. a4 {[%clk 01:00:36]} {[%emt 00:01:13]} Ne7 {[%clk 00:21:35]} {[%emt
00:06:29]} 22. Bc7 {[%clk 00:59:47]} {[%emt 00:01:15]} Qd7 {[%clk 00:21:27]}
{[%emt 00:00:37]} 23. b5 {[%clk 00:59:43]} {[%emt 00:00:34]} axb5 {[%clk
00:21:48]} {[%emt 00:00:10]} 24. axb5 {[%clk 01:00:03]} {[%emt 00:00:08]} Ra4
{[%clk 00:20:42]} {[%emt 00:01:46]} 25. b6 {[%clk 00:58:38]} {[%emt 00:01:48]}
Nc6 {[%clk 00:17:50]} {[%emt 00:03:21]} 26. Bf4 {[%clk 00:57:28]} {[%emt
00:01:39]} Rca8 {[%clk 00:16:13]} {[%emt 00:02:08]} 27. Be3 {[%clk 00:55:37]}
{[%emt 00:02:30]} Qd8 {[%clk 00:10:31]} {[%emt 00:12:28]} 28. Rb1 {[%clk
00:53:53]} R8a6 {[%clk 00:09:05]} 29. Qd1 Rb4 {[%clk 00:04:33]} {[%emt
00:03:38]} 30. Rxb4 {[%clk 00:52:23]} {[%emt 00:01:39]} Nxb4 {[%clk 00:05:02]}
{[%emt 00:00:01]} 31. Rb5 {[%clk 00:48:59]} {[%emt 00:03:52]} Rxb6 {[%clk
00:05:16]} {[%emt 00:00:16]} 32. Rxb6 {[%clk 00:48:50]} {[%emt 00:00:40]} Qxb6
{[%clk 00:05:43]} {[%emt 00:00:03]} 33. Qb3 {[%clk 00:47:58]} {[%emt 00:01:21]}
Qd6 {[%clk 00:05:29]} {[%emt 00:00:44]} 34. Bd2 {[%clk 00:46:19]} {[%emt
00:02:21]} Nc6 {[%clk 00:05:55]} 35. Qb6 {[%clk 00:45:36]} {[%emt 00:01:05]}
Qd7 {[%clk 00:05:54]} {[%emt 00:00:31]} 36. Be3 {[%clk 00:45:30]} {[%emt
00:00:35]} Ne7 {[%clk 00:06:07]} {[%emt 00:00:17]} 37. Bf1 {[%clk 00:43:56]}
{[%emt 00:02:04]} Nf5 {[%clk 00:04:48]} {[%emt 00:01:49]} 38. Bf4 {[%clk
00:44:18]} {[%emt 00:00:08]} Ne7 {[%clk 00:03:54]} {[%emt 00:01:24]} 39. Bb5
{[%clk 00:44:25]} {[%emt 00:00:23]} Qc8 {[%clk 00:04:15]} {[%emt 00:00:09]} 40.
Kh2 {[%clk 00:42:47]} {[%emt 00:02:07]} Ng6 {[%clk 00:03:49]} {[%emt 00:00:56]}
41. Bc7 {[%clk 00:41:47]} {[%emt 00:01:30]} Nf8 {[%clk 00:03:11]} {[%emt
00:01:09]} 42. Qd6 {[%clk 00:39:52]} {[%emt 00:02:25]} Bd7 {[%clk 00:03:09]}
{[%emt 00:00:33]} 43. Bd3 {[%clk 00:38:48]} {[%emt 00:01:34]} Bf5 {[%clk
00:03:19]} {[%emt 00:00:20]} 44. Bf1 {[%clk 00:37:35]} {[%emt 00:01:43]} Qd7
{[%clk 00:02:24]} {[%emt 00:01:24]} 45. Qb6 {[%emt 00:04:39]} Ne6 {[%clk
00:00:45]} 46. Be5 {[%clk 00:35:42]} {[%emt 00:00:22]} Qc6 {[%clk 00:30:20]}
{[%emt 00:00:55]} 47. Qb4 {[%clk 01:04:38]} {[%emt 00:01:34]} Be4 {[%clk
00:29:14]} {[%emt 00:01:36]} 48. Qd2 {[%clk 00:59:30]} {[%emt 00:05:38]} Qb6
{[%clk 00:26:37]} {[%emt 00:03:08]} 49. Bh3 {[%clk 00:56:58]} {[%emt 00:03:03]}
Qb1 {[%clk 00:26:37]} {[%emt 00:00:30]} 50. Bg2 {[%clk 00:56:56]} {[%emt
00:00:31]} Bxg2 {[%clk 00:26:34]} {[%emt 00:00:33]} 51. Kxg2 {[%clk 00:57:20]}
{[%emt 00:00:06]} f6 {[%clk 00:26:19]} {[%emt 00:00:46]} 52. Bf4 {[%clk
00:56:34]} {[%emt 00:01:16]} Qe4+ {[%clk 00:26:18]} {[%emt 00:00:31]} 53. f3
{[%clk 00:56:59]} {[%emt 00:00:05]} Qxd4 {[%clk 00:26:38]} {[%emt 00:00:10]} 54.
Bxh6 {[%clk 00:57:10]} {[%emt 00:00:19]} gxh6 {[%clk 00:25:51]} {[%emt
00:01:17]} 55. Qxh6 {[%clk 00:56:39]} {[%emt 00:01:01]} Nf8 {[%clk 00:24:52]}
{[%emt 00:01:30]} 56. h5 {[%clk 00:56:00]} {[%emt 00:01:10]} b5 {[%clk
00:22:09]} {[%emt 00:03:13]} 57. g4 {[%clk 00:55:43]} {[%emt 00:00:46]} b4
{[%clk 00:21:58]} {[%emt 00:00:42]} 0-1

[Event "Chess Festival Groningen 2023 | A"]
[Site "Groningen, Netherlands"]
[Date "2023.12.27"]
[Round "6.13"]
[White "Lambrechts, Koen"]
[Black "Stremavicius, Pijus"]
[Result "1-0"]
[TimeControl "90min/40moves + 30min + 30sec/move"]
[WhiteElo "2290"]
[BlackElo "2367"]

1. e4 {[%clk 01:30:56]} {[%emt 00:00:02]} e6 {[%clk 01:30:53]} {[%emt
00:00:09]} 2. d4 {[%clk 01:30:58]} {[%emt 00:00:27]} d5 {[%clk 01:31:17]}
{[%emt 00:00:06]} 3. Nd2 {[%clk 01:29:48]} {[%emt 00:01:40]} c5 {[%clk
01:31:41]} {[%emt 00:00:07]} 4. exd5 {[%clk 01:29:42]} {[%emt 00:00:36]} exd5
{[%clk 01:32:06]} {[%emt 00:00:05]} 5. Ngf3 {[%clk 01:25:22]} {[%emt 00:04:50]}
Nc6 {[%clk 01:31:27]} {[%emt 00:01:09]} 6. Be2 {[%clk 01:22:48]} {[%emt
00:03:03]} Nf6 {[%clk 01:31:16]} {[%emt 00:00:41]} 7. O-O {[%clk 01:22:32]}
{[%emt 00:00:47]} Be6 {[%clk 01:31:41]} {[%emt 00:00:04]} 8. dxc5 {[%clk
01:22:11]} {[%emt 00:00:52]} Bxc5 {[%clk 01:31:21]} {[%emt 00:00:49]} 9. Nb3
{[%clk 01:22:32]} {[%emt 00:00:09]} Bb6 {[%clk 01:31:29]} {[%emt 00:00:23]} 10.
Bg5 {[%clk 01:18:50]} {[%emt 00:04:12]} h6 {[%clk 01:31:16]} {[%emt 00:00:42]}
11. Bh4 {[%clk 01:16:07]} {[%emt 00:03:13]} g5 {[%clk 01:29:27]} {[%emt
00:02:20]} 12. Bg3 {[%clk 01:16:11]} {[%emt 00:00:25]} Ne4 {[%clk 01:29:53]}
{[%emt 00:00:04]} 13. Nfd4 {[%clk 01:16:25]} {[%emt 00:00:16]} Qf6 {[%clk
01:29:27]} {[%emt 00:00:55]} 14. c3 {[%clk 01:16:13]} {[%emt 00:00:42]} h5
{[%clk 01:18:46]} {[%emt 00:11:12]} 15. Bxh5 {[%clk 00:44:52]} {[%emt
00:31:53]} Nxd4 {[%clk 01:04:30]} {[%emt 00:14:45]} 16. Nxd4 {[%clk 00:44:55]}
{[%emt 00:00:27]} Bxd4 {[%clk 01:04:41]} {[%emt 00:00:20]} 17. cxd4 {[%clk
00:45:16]} {[%emt 00:00:09]} Qh6 {[%clk 01:05:06]} {[%emt 00:00:04]} 18. Qa4+
{[%clk 00:26:35]} {[%emt 00:19:10]} Bd7 {[%clk 01:00:09]} {[%emt 00:05:28]} 19.
Bxf7+ {[%clk 00:26:16]} {[%emt 00:00:49]} Ke7 {[%clk 01:00:36]} {[%emt
00:00:03]} 20. Qb3 {[%clk 00:21:00]} {[%emt 00:05:49]} Kxf7 {[%clk 01:00:57]}
{[%emt 00:00:05]} 21. Qxd5+ {[%clk 00:19:34]} {[%emt 00:01:56]} Qe6 {[%clk
01:01:22]} {[%emt 00:00:12]} 22. Qxb7 {[%clk 00:19:54]} {[%emt 00:00:04]} Kg6
{[%clk 00:59:45]} {[%emt 00:02:08]} 23. Be5 {[%clk 00:13:59]} {[%emt 00:06:24]}
Nf6 {[%emt 00:18:31]} 24. f4 {[%clk 00:09:23]} {[%emt 00:01:10]} gxf4 {[%clk
00:46:06]} {[%emt 00:00:04]} 25. Rxf4 {[%clk 00:08:55]} {[%emt 00:00:58]} Nd5
{[%clk 00:46:05]} {[%emt 00:00:31]} 26. Rf3 {[%clk 00:07:12]} {[%emt 00:02:12]}
Rhf8 {[%clk 00:45:45]} {[%emt 00:00:50]} 27. Rg3+ {[%clk 00:06:41]} {[%emt
00:01:01]} Kh5 {[%clk 00:45:33]} {[%emt 00:00:42]} 28. Rh3+ {[%clk 00:06:39]}
{[%emt 00:00:31]} Kg6 {[%clk 00:44:52]} {[%emt 00:01:11]} 29. Rg3+ {[%clk
00:06:53]} {[%emt 00:00:16]} Kh5 {[%clk 00:45:21]} {[%emt 00:00:01]} 30. Qb3
{[%clk 00:06:25]} {[%emt 00:00:59]} Rf5 {[%clk 00:41:01]} {[%emt 00:04:50]} 31.
Re1 {[%clk 00:04:35]} {[%emt 00:02:20]} Rg8 {[%clk 00:33:12]} {[%emt 00:08:20]}
32. Qd1+ {[%clk 00:04:44]} {[%emt 00:00:20]} Kh6 {[%clk 00:33:38]} {[%emt
00:00:04]} 33. Qd2+ {[%clk 00:04:51]} {[%emt 00:00:23]} Rfg5 {[%clk 00:32:14]}
{[%emt 00:01:54]} 34. Rxg5 {[%clk 00:04:29]} {[%emt 00:00:52]} 1-0

[Event "Chess Festival Groningen 2023 | A"]
[Site "Groningen, Netherlands"]
[Date "2023.12.27"]
[Round "6.14"]
[White "Van Foreest, Machteld"]
[Black "Gomes, Mary Ann"]
[Result "0-1"]
[TimeControl "90min/40moves + 30min + 30sec/move"]
[WhiteElo "2344"]
[BlackElo "2332"]

1. e4 {[%clk 01:30:00]} {[%emt 00:00:59]} c5 {[%clk 01:30:28]} {[%emt
00:00:32]} 2. Nf3 {[%clk 01:30:22]} {[%emt 00:00:09]} e6 {[%clk 01:30:52]}
{[%emt 00:00:06]} 3. d4 {[%clk 01:26:59]} {[%emt 00:03:52]} cxd4 {[%clk
01:31:15]} {[%emt 00:00:07]} 4. Nxd4 {[%clk 01:27:24]} {[%emt 00:00:06]} a6
{[%clk 01:31:41]} {[%emt 00:00:05]} 5. Bd3 {[%clk 01:26:31]} {[%emt 00:01:22]}
Qc7 {[%clk 01:32:04]} {[%emt 00:00:08]} 6. O-O {[%clk 01:22:30]} {[%emt
00:04:31]} Nf6 {[%clk 01:32:26]} {[%emt 00:00:08]} 7. Qe2 {[%clk 01:22:04]}
{[%emt 00:00:56]} d6 {[%clk 01:32:34]} {[%emt 00:00:22]} 8. Be3 {[%clk
01:10:10]} {[%emt 00:12:23]} Nbd7 {[%clk 01:32:29]} {[%emt 00:00:35]} 9. Nd2
{[%clk 01:08:52]} {[%emt 00:01:49]} Be7 {[%clk 01:32:07]} {[%emt 00:00:51]} 10.
a4 {[%clk 01:06:24]} {[%emt 00:02:59]} b6 {[%clk 01:32:07]} {[%emt 00:00:29]}
11. Rfc1 {[%clk 00:52:02]} {[%emt 00:14:52]} Bb7 {[%clk 01:32:04]} {[%emt
00:00:34]} 12. c4 {[%clk 00:47:02]} {[%emt 00:05:30]} Nc5 {[%clk 01:29:59]}
{[%emt 00:02:35]} 13. f3 {[%clk 00:45:05]} {[%emt 00:02:26]} Nxd3 {[%clk
01:30:14]} {[%emt 00:00:15]} 14. Qxd3 {[%clk 00:45:32]} {[%emt 00:00:03]} O-O
{[%clk 01:30:35]} {[%emt 00:00:09]} 15. a5 {[%clk 00:42:07]} {[%emt 00:03:56]}
bxa5 {[%clk 01:30:49]} {[%emt 00:00:16]} 16. N2b3 {[%clk 00:42:23]} {[%emt
00:00:14]} a4 {[%clk 01:28:55]} {[%emt 00:02:23]} 17. Rxa4 {[%clk 00:42:11]}
{[%emt 00:00:42]} Nd7 {[%clk 01:29:18]} {[%emt 00:00:06]} 18. Raa1 {[%clk
00:33:42]} {[%emt 00:08:59]} Rfc8 {[%clk 01:24:04]} {[%emt 00:05:44]} 19. Na5
{[%clk 00:32:11]} {[%emt 00:02:02]} Rab8 {[%clk 01:24:19]} {[%emt 00:00:16]} 20.
b4 {[%clk 00:32:19]} {[%emt 00:00:22]} Bf6 {[%clk 01:21:52]} {[%emt 00:02:56]}
21. Qd2 {[%clk 00:30:52]} {[%emt 00:01:57]} Be5 {[%clk 01:06:56]} {[%emt
00:15:26]} 22. Rab1 {[%clk 00:28:44]} {[%emt 00:02:39]} Ba8 {[%clk 01:01:51]}
{[%emt 00:05:35]} 23. b5 {[%clk 00:24:18]} {[%emt 00:05:00]} Bxd4 {[%clk
01:01:48]} {[%emt 00:00:33]} 24. Bxd4 {[%clk 00:24:46]} axb5 {[%clk 01:01:55]}
{[%emt 00:00:23]} 25. cxb5 {[%clk 00:23:37]} {[%emt 00:01:47]} Rxb5 {[%clk
01:01:49]} {[%emt 00:00:27]} 26. Rxc7 {[%clk 00:21:23]} Rxb1+ {[%clk 01:02:12]}
{[%emt 00:02:53]} 27. Kf2 {[%clk 00:21:51]} Rxc7 {[%clk 01:02:37]} {[%emt
00:00:06]} 28. Bb2 {[%clk 00:10:39]} {[%emt 00:11:48]} h6 {[%clk 00:55:50]}
{[%emt 00:12:54]} 29. Kg3 {[%clk 00:09:24]} d5 {[%clk 00:55:10]} 30. Nb3 {[%clk
00:04:24]} {[%emt 00:02:42]} dxe4 {[%emt 00:04:43]} 31. Qa5 {[%clk 00:02:08]}
Rc8 {[%clk 00:53:00]} {[%emt 00:01:12]} 32. Qa2 {[%clk 00:02:36]} {[%emt
00:00:03]} Rd1 {[%clk 00:52:28]} {[%emt 00:01:01]} 33. Nd4 {[%clk 00:02:42]}
{[%emt 00:00:24]} Nc5 {[%clk 00:48:24]} {[%emt 00:04:35]} 34. Qa5 {[%clk
00:01:30]} {[%emt 00:01:42]} exf3 {[%clk 00:48:24]} {[%emt 00:00:30]} 35. gxf3
{[%clk 00:01:58]} {[%emt 00:00:02]} Rd3 {[%clk 00:47:53]} {[%emt 00:01:00]} 36.
Kg2 {[%clk 00:00:44]} {[%emt 00:01:45]} e5 {[%clk 00:46:42]} {[%emt 00:01:41]}
37. Nf5 {[%clk 00:01:09]} {[%emt 00:00:05]} Rxf3 {[%clk 00:46:23]} {[%emt
00:00:49]} 38. Ne7+ {[%clk 00:01:29]} {[%emt 00:00:11]} Kh7 {[%clk 00:46:42]}
{[%emt 00:00:10]} 39. Kg1 {[%clk 00:01:28]} {[%emt 00:00:32]} Rb8 {[%clk
00:45:17]} {[%emt 00:01:55]} 40. Qa7 {[%clk 00:01:01]} {[%emt 00:00:57]} Rd8
{[%clk 00:43:35]} {[%emt 00:02:11]} 41. Qa1 {[%clk 00:27:53]} {[%emt 00:03:39]}
Rfd3 {[%clk 01:12:32]} {[%emt 00:01:32]} 42. Qa5 {[%clk 00:25:51]} {[%emt
00:02:32]} Rd1+ {[%clk 01:12:45]} {[%emt 00:00:16]} 43. Kf2 {[%clk 00:25:48]}
{[%emt 00:00:34]} Nd3+ {[%clk 01:12:17]} {[%emt 00:00:58]} 0-1